fUST/lending_fUST_20240228
["ID","MTS","AMOUNT","RATE_DAILY","PERIOD"]
[315482466,1709074242096,-1284.62,0.00019178,2]
[315482468,1709074242105,-500.0,0.00019178,2]
[315482470,1709074242114,-500.0,0.00019178,2]
[315482472,1709074242123,-1786.01,0.00019178,2]
[315482474,1709074242133,-500.0,0.00019178,2]
[315482476,1709074242142,-631.88316955,0.00019178,2]
[315482478,1709074242151,-500.0,0.00019178,2]
[315482480,1709074242159,-500.0,0.00019178,2]
[315482481,1709074242169,-1435.21,0.00019178,2]
[315482482,1709074242178,-383.6058101,0.00019178,2]
[315482483,1709074242193,-116.3941899,0.00019178,2]
[315482484,1709074242202,-500.0,0.00019178,2]
[315482485,1709074242212,-1205.25,0.00019178,2]
[315482486,1709074242221,-611.24857281,0.00019178,2]
[315482487,1709074242230,-1364.19,0.00019178,2]
[315482488,1709074242239,-500.0,0.00019178,2]
[315482489,1709074242250,-500.0,0.00019178,2]
[315482490,1709074242259,-500.0,0.00019178,2]
[315482491,1709074242268,-500.0,0.00019178,2]
[315482492,1709074242277,-500.0,0.00019178,2]
[315482493,1709074242286,-500.0,0.00019178,2]
[315482494,1709074242295,-500.0,0.00019178,2]
[315482495,1709074242304,-500.0,0.00019178,2]
[315482497,1709074242313,-500.0,0.00019178,2]
[315482499,1709074242322,-500.0,0.00019178,2]
[315482501,1709074242332,-500.0,0.00019178,2]
[315482503,1709074242341,-500.0,0.00019178,2]
[315482504,1709074242350,-500.0,0.00019178,2]
[315482506,1709074242360,-500.0,0.00019178,2]
[315482508,1709074242369,-500.0,0.00019178,2]
[315482510,1709074242378,-483.10310341,0.00019178,2]
[315482512,1709074242389,-500.0,0.00019178,2]
[315482515,1709074242398,-6760.16,0.00019178,2]
[315482517,1709074242407,-500.0,0.00019178,2]
[315482519,1709074242416,-500.0,0.00019178,2]
[315482521,1709074242426,-500.0,0.00019178,2]
[315482523,1709074242435,-500.0,0.00019178,2]
[315482525,1709074242443,-500.42437072,0.00019178,2]
[315482527,1709074242452,-500.0,0.00019178,2]
[315482529,1709074242461,-500.0,0.00019178,2]
[315482531,1709074242470,-518.41339989,0.00019178,2]
[315482533,1709074242479,-2507.87,0.00019178,2]
[315482535,1709074242488,-3134.55,0.00019178,2]
[315482537,1709074242497,-500.0,0.00019178,2]
[315482539,1709074242506,-11047.1,0.00019178,2]
[315482541,1709074242515,-500.0,0.00019178,2]
[315482543,1709074242524,-151.0,0.00019178,2]
[315482545,1709074242533,-162.238783,0.00019178,2]
[315482547,1709074242542,-166.666666,0.00019178,2]
[315482549,1709074242551,-500.0,0.00019297,2]
[315482551,1709074242560,-153.0,0.000194,2]
[315482553,1709074242570,-153.0,0.000194,2]
[315482555,1709074242579,-153.0,0.000194,2]
[315482557,1709074242588,-821.59375015,0.00019408,2]
[315482559,1709074242597,-500.0,0.00019452,2]
[315482561,1709074242610,-500.0,0.00019452,2]
[315482563,1709074242619,-614.85,0.00019452,2]
[315482565,1709074242627,-265.19635184,0.00019452,2]
[315482567,1709074242638,-2416.81,0.00019452,2]
[315482569,1709074242648,-973.36,0.00019452,2]
[315482571,1709074242657,-500.0,0.00019452,2]
[315482573,1709074242666,-1383.74,0.00019452,2]
[315482575,1709074242676,-500.0,0.00019452,2]
[315482577,1709074242685,-502.14121956,0.00019452,2]
[315482579,1709074242695,-500.0,0.00019452,2]
[315482581,1709074242704,-500.0,0.00019452,2]
[315482583,1709074242713,-500.0,0.00019452,2]
[315482585,1709074242723,-500.0,0.00019452,2]
[315482587,1709074242732,-500.0,0.00019452,2]
[315482589,1709074242741,-648.59342322,0.00019452,2]
[315482591,1709074242750,-870.43,0.00019452,2]
[315482593,1709074242759,-949.03,0.00019452,2]
[315482595,1709074242768,-500.0,0.00019452,2]
[315482597,1709074242777,-500.0,0.00019452,2]
[315482599,1709074242786,-500.0,0.00019452,2]
[315482601,1709074242796,-761.93,0.00019452,2]
[315482603,1709074242805,-500.0,0.00019452,2]
[315482605,1709074242815,-500.0,0.00019452,2]
[315482607,1709074242824,-452.14438946,0.00019452,2]
[315482609,1709074242834,-500.0,0.00019452,2]
[315482611,1709074242844,-1081.15,0.00019452,2]
[315482613,1709074242855,-500.0,0.00019452,2]
[315482615,1709074242865,-500.0,0.00019452,2]
[315482617,1709074242876,-500.0,0.00019452,2]
[315482619,1709074242887,-500.0,0.00019452,2]
[315482621,1709074242898,-500.0,0.00019452,2]
[315482623,1709074242907,-1386.62,0.00019452,2]
[315482625,1709074242916,-500.0,0.00019452,2]
[315482627,1709074242926,-921.69,0.00019452,2]
[315482629,1709074242936,-2221.58,0.00019452,2]
[315482631,1709074242945,-500.0,0.00019452,2]
[315482633,1709074242954,-500.0,0.00019452,2]
[315482635,1709074242964,-500.0,0.00019452,2]
[315482637,1709074242973,-500.0,0.00019452,2]
[315482639,1709074242983,-4126.36,0.00019452,2]
[315482641,1709074242992,-578.32,0.00019452,2]
[315482643,1709074243001,-2432.96,0.00019452,2]
[315482645,1709074243011,-2065.13,0.00019452,2]
[315482647,1709074243020,-500.0,0.00019452,2]
[315482649,1709074243030,-500.0,0.00019452,2]
[315482651,1709074243039,-500.0,0.00019452,2]
[315482653,1709074243049,-500.0,0.00019452,2]
[315482655,1709074243058,-1045.09,0.00019452,2]
[315482657,1709074243067,-1890.54,0.00019452,2]
[315482659,1709074243076,-500.0,0.00019452,2]
[315482661,1709074243085,-500.0,0.00019452,2]
[315482663,1709074243094,-304.73492126,0.00019452,2]
[315482674,1709074243187,-5577.08676965,0.00019452,2]
[315482853,1709074245008,-582.12796174,0.00019178,2]
[315482856,1709074245018,-2215.41,0.00019178,2]
[315482858,1709074245027,-8800.49830909,0.00019452,2]
[315482860,1709074245036,-151.0,0.00019452,2]
[315482862,1709074245045,-151.0,0.00019452,2]
[315482864,1709074245054,-151.0,0.00019452,2]
[315482866,1709074245063,-500.0,0.00019452,2]
[315482868,1709074245072,-500.0,0.00019452,2]
[315482870,1709074245081,-1284.62,0.00019452,2]
[315482872,1709074245090,-642.48030341,0.00019452,2]
[315482874,1709074245099,-1786.01,0.00019452,2]
[315482876,1709074245108,-500.0,0.00019452,2]
[315482877,1709074245117,-1435.21,0.00019452,2]
[315482879,1709074245126,-1205.25,0.00019452,2]
[315482881,1709074245136,-1364.19,0.00019452,2]
[315482883,1709074245145,-500.0,0.00019452,2]
[315482885,1709074245154,-500.0,0.00019452,2]
[315482887,1709074245163,-500.0,0.00019452,2]
[315482889,1709074245173,-500.0,0.00019452,2]
[315482891,1709074245182,-6760.16,0.00019452,2]
[315482893,1709074245191,-500.0,0.00019452,2]
[315482895,1709074245200,-500.0,0.00019452,2]
[315482897,1709074245209,-500.0,0.00019452,2]
[315482899,1709074245219,-500.0,0.00019452,2]
[315482901,1709074245228,-2507.87,0.00019452,2]
[315482903,1709074245237,-3134.55,0.00019452,2]
[315482905,1709074245246,-11047.1,0.00019452,2]
[315482907,1709074245255,-2215.41,0.00019452,2]
[315482909,1709074245264,-500.0,0.00019608,2]
[315482911,1709074245273,-421.85189728,0.00019626,2]
[315482913,1709074245285,-2389.819265,0.00019626,2]
[315482916,1709074245297,-335.57121574,0.00019626,2]
[315482918,1709074245306,-35.74555066,0.00019627,2]
[315486792,1709075432190,-461.47077304,0.000176,2]
[315486794,1709075432201,-620.00000022,0.0001882,2]
[315486796,1709075432212,-918.03476036,0.00018899,2]
[315487372,1709075438104,-4954.23844867,0.00018899,2]
[315487374,1709075438114,-283.49131451,0.000189,2]
[315487376,1709075438123,-492.95625009,0.00018978,2]
[315487377,1709075438133,-11806.44778236,0.00019042,2]
[315487413,1709075441314,-21646.43072489,0.00019042,2]
[315487416,1709075441327,-2034.75599286,0.00019042,2]
[315487421,1709075441373,-5149.17331751,0.00019042,2]
[315487657,1709075446170,-301.84221,0.00019042,2]
[315487871,1709076292100,2999.0,0.000275,30]
[315490493,1709076632342,-163.55377005,0.00017518,2]
[315490495,1709076632351,-200.63706378,0.00017617,2]
[315490505,1709076639276,-5671.63614525,0.00017617,2]
[315490506,1709076639286,-300.0,0.00017617,2]
[315490507,1709076639295,-3696.56301729,0.00017618,2]
[315490508,1709076639307,-5279.03057861,0.00017618,2]
[315490509,1709076639316,-232.912924,0.00017667,2]
[315490510,1709076639325,-171.4412513,0.00018139,2]
[315490511,1709076639334,-186.56352856,0.000188,2]
[315490512,1709076639343,-153.0,0.00018827,2]
[315490513,1709076639352,-153.0,0.00018827,2]
[315490515,1709076639375,-394.36500008,0.000189,2]
[315490518,1709076639386,-153.0,0.000189,2]
[315490520,1709076639396,-153.0,0.000189,2]
[315490522,1709076639405,-151.60364394,0.000189,2]
[315490524,1709076639414,-17912.25864784,0.00018942,2]
[315490526,1709076639428,-994.08007561,0.00018942,2]
[315490528,1709076639441,-572.75454271,0.00018942,2]
[315490726,1709076641496,-3000.82457073,0.00018942,2]
[315491058,1709076644644,-1542.83743,0.00018942,2]
[315491240,1709076646386,-351.10475835,0.00018942,2]
[315491671,1709077695004,690.06,0.00017484,2]
[315491697,1709077832505,-677.63039437,0.00017701,2]
[315491698,1709077832514,-155.09150399,0.00017702,2]
[315491699,1709077832523,-1879.04617708,0.00017703,2]
[315491700,1709077832532,-3548.84716228,0.00017705,2]
[315492045,1709077841634,-159.81994913,0.000177,2]
[315492047,1709077841643,-906.85480369,0.00017705,2]
[315492547,1709077846552,-819.74779499,0.00017705,2]
[315492548,1709077846563,-596.82344807,0.00017705,2]
[315492549,1709077846573,-249.5002275,0.00017708,2]
[315492550,1709077846582,-546.65222644,0.00017813,2]
[315492551,1709077846594,-1140.06325846,0.00017813,2]
[315492552,1709077846603,-232.912924,0.00017823,2]
[315492553,1709077846611,-620.00000001,0.00018773,2]
[315492554,1709077846621,-529.64264878,0.000188,2]
[315492555,1709077846630,-325.08571115,0.00018828,2]
[315492556,1709077846639,-150.47,0.00018832,3]
[315492557,1709077846648,-451.45,0.00018832,3]
[315492558,1709077846656,-1426.92090632,0.0001884,2]
[315492559,1709077846665,-1415.23694982,0.0001884,2]
[315492560,1709077846675,-155.13914741,0.00018841,2]
[315492562,1709077846684,-635.32659493,0.00018842,2]
[315492564,1709077846694,-235061.34997238,0.00018842,2]
[315492566,1709077846703,-253.82779553,0.000189,2]
[315492568,1709077846712,-500.0,0.00019012,2]
[315492570,1709077846721,-153.0,0.000191,2]
[315492572,1709077846730,-153.0,0.000191,2]
[315492574,1709077846739,-153.0,0.000191,2]
[315492576,1709077846748,-153.0,0.000191,2]
[315492578,1709077846757,-529.64264876,0.00019169,2]
[315492580,1709077846766,-500.4048006,0.00019178,2]
[315492582,1709077846779,-500.0,0.00019178,2]
[315492584,1709077846788,-500.0,0.00019178,2]
[315492586,1709077846797,-500.0,0.00019178,2]
[315492588,1709077846806,-500.0,0.00019178,2]
[315492590,1709077846815,-500.0,0.00019178,2]
[315492592,1709077846823,-245.55365273,0.00019178,2]
[315492594,1709077846833,-327.64198413,0.00019178,2]
[315492596,1709077846841,-500.0,0.00019178,2]
[315492598,1709077846850,-500.0,0.00019178,2]
[315492599,1709077846860,-500.0,0.00019178,2]
[315492602,1709077846869,-500.0,0.00019178,2]
[315492604,1709077846879,-500.0,0.00019178,2]
[315492606,1709077846888,-612.75,0.00019178,2]
[315492607,1709077846897,-500.0,0.00019178,2]
[315492610,1709077846907,-1335.0,0.00019178,2]
[315492612,1709077846916,-500.0,0.00019178,2]
[315492614,1709077846930,-500.0,0.00019178,2]
[315492616,1709077846938,-500.0,0.00019178,2]
[315492618,1709077846948,-500.0,0.00019178,2]
[315492620,1709077846957,-500.0,0.00019178,2]
[315492622,1709077846967,-500.0,0.00019178,2]
[315492624,1709077846976,-500.0,0.00019178,2]
[315492626,1709077846985,-500.0,0.00019178,2]
[315492628,1709077846994,-500.0,0.00019178,2]
[315492631,1709077847005,-500.0,0.00019178,2]
[315492633,1709077847014,-500.0,0.00019178,2]
[315492635,1709077847023,-500.0,0.00019178,2]
[315492637,1709077847032,-500.0,0.00019178,2]
[315492639,1709077847041,-500.0,0.00019178,2]
[315492641,1709077847050,-2166.89,0.00019178,2]
[315492643,1709077847059,-945.21,0.00019178,2]
[315492645,1709077847068,-500.88715214,0.00019178,2]
[315492647,1709077847079,-500.0,0.00019178,2]
[315492649,1709077847089,-1314.19,0.00019178,2]
[315492651,1709077847098,-301.65407508,0.00019178,2]
[315492653,1709077847108,-500.0,0.00019178,2]
[315492655,1709077847117,-500.0,0.00019178,2]
[315492657,1709077847127,-290.17876149,0.00019178,2]
[315492659,1709077847137,-500.0,0.00019178,2]
[315492661,1709077847146,-500.99987678,0.00019178,2]
[315492663,1709077847155,-389.73044183,0.00019178,2]
[315492665,1709077847170,-235.98359213,0.00019178,2]
[315492667,1709077847180,-500.0,0.00019178,2]
[315492669,1709077847189,-500.0,0.00019178,2]
[315492671,1709077847199,-500.0,0.00019178,2]
[315492673,1709077847208,-500.0,0.00019178,2]
[315492675,1709077847218,-500.0,0.00019178,2]
[315492677,1709077847227,-500.0,0.00019178,2]
[315492679,1709077847236,-500.50541851,0.00019178,2]
[315492681,1709077847245,-500.0,0.00019178,2]
[315492683,1709077847254,-500.0,0.00019178,2]
[315492686,1709077847263,-500.0,0.00019178,2]
[315492688,1709077847272,-500.0,0.00019178,2]
[315492689,1709077847282,-500.0,0.00019178,2]
[315492691,1709077847291,-500.0,0.00019178,2]
[315492693,1709077847300,-501.11630896,0.00019178,2]
[315492696,1709077847310,-500.0,0.00019178,2]
[315492698,1709077847319,-500.80947472,0.00019178,2]
[315492700,1709077847329,-500.0,0.00019178,2]
[315492702,1709077847338,-500.0,0.00019178,2]
[315492704,1709077847348,-500.0,0.00019178,2]
[315492706,1709077847357,-500.0,0.00019178,2]
[315492707,1709077847366,-500.0,0.00019178,2]
[315492709,1709077847376,-500.0,0.00019178,2]
[315492710,1709077847384,-500.0,0.00019178,2]
[315492712,1709077847393,-500.0,0.00019178,2]
[315492714,1709077847402,-500.0,0.00019178,2]
[315492716,1709077847412,-500.0,0.00019178,2]
[315492718,1709077847421,-500.0,0.00019178,2]
[315492720,1709077847430,-500.0,0.00019178,2]
[315492722,1709077847438,-500.0,0.00019178,2]
[315492724,1709077847448,-500.0,0.00019178,2]
[315492726,1709077847458,-500.0,0.00019178,2]
[315492728,1709077847468,-500.0,0.00019178,2]
[315492730,1709077847478,-500.0,0.00019178,2]
[315492732,1709077847487,-500.0,0.00019178,2]
[315492734,1709077847496,-500.0,0.00019178,2]
[315492736,1709077847505,-1734.91,0.00019178,2]
[315492738,1709077847514,-500.0,0.00019178,2]
[315492740,1709077847524,-200.42394472,0.00019178,2]
[315492742,1709077847534,-500.0,0.00019178,2]
[315492744,1709077847543,-513.93926207,0.00019178,2]
[315492746,1709077847551,-500.0,0.00019178,2]
[315492748,1709077847560,-1315.61,0.00019178,2]
[315492750,1709077847570,-500.0,0.00019178,2]
[315492752,1709077847580,-500.0,0.00019178,2]
[315492754,1709077847589,-500.0,0.00019178,2]
[315492755,1709077847600,-500.0,0.00019178,2]
[315492757,1709077847609,-500.0,0.00019178,2]
[315492759,1709077847619,-2403.05,0.00019178,2]
[315492761,1709077847628,-500.0,0.00019178,2]
[315492763,1709077847638,-500.0,0.00019178,2]
[315492765,1709077847647,-10325.21,0.00019178,2]
[315492767,1709077847656,-500.0,0.00019178,2]
[315492769,1709077847665,-500.0,0.00019178,2]
[315492771,1709077847674,-500.0,0.00019178,2]
[315492773,1709077847683,-559.15393256,0.00019178,2]
[315492775,1709077847693,-500.0,0.00019178,2]
[315492777,1709077847702,-500.0,0.00019178,2]
[315492779,1709077847712,-500.0,0.00019178,2]
[315492781,1709077847720,-483.72738854,0.00019178,2]
[315492783,1709077847729,-500.0,0.00019178,2]
[315492785,1709077847738,-937.16,0.00019178,2]
[315492787,1709077847747,-6577.09,0.00019178,2]
[315492789,1709077847757,-500.0,0.00019178,2]
[315492791,1709077847766,-500.0,0.00019178,2]
[315492793,1709077847778,-500.0,0.00019178,2]
[315492795,1709077847788,-569.99,0.00019178,2]
[315492797,1709077847797,-500.0,0.00019178,2]
[315492799,1709077847807,-500.0,0.00019178,2]
[315492800,1709077847816,-14206.14,0.00019178,2]
[315492802,1709077847826,-991.05,0.00019178,2]
[315492804,1709077847835,-500.0,0.00019178,2]
[315492806,1709077847845,-3056.26,0.00019178,2]
[315492808,1709077847854,-500.0,0.00019178,2]
[315492810,1709077847863,-500.0,0.00019178,2]
[315492812,1709077847873,-500.0,0.00019178,2]
[315492814,1709077847882,-500.0,0.00019178,2]
[315492816,1709077847891,-500.0,0.00019178,2]
[315492817,1709077847900,-756.22,0.00019178,2]
[315492819,1709077847909,-500.0,0.00019178,2]
[315492821,1709077847918,-1014.22,0.00019178,2]
[315492823,1709077847928,-500.0,0.00019178,2]
[315492825,1709077847936,-500.0,0.00019178,2]
[315492827,1709077847946,-951.92,0.00019178,2]
[315492829,1709077847955,-500.0,0.00019178,2]
[315492831,1709077847964,-500.0,0.00019178,2]
[315492833,1709077847972,-497.77356156,0.00019178,2]
[315492835,1709077847981,-500.0,0.00019178,2]
[315492837,1709077847990,-500.0,0.00019178,2]
[315492839,1709077848000,-155.0,0.00019178,2]
[315492840,1709077848009,-2340.32,0.00019178,2]
[315492842,1709077848019,-4091.55,0.00019178,2]
[315492844,1709077848028,-500.0,0.00019178,2]
[315492846,1709077848038,-500.0,0.00019178,2]
[315492848,1709077848047,-500.0,0.00019178,2]
[315492850,1709077848057,-1257.0,0.00019178,2]
[315492852,1709077848066,-1970.19,0.00019178,2]
[315492854,1709077848076,-1170.07,0.00019178,2]
[315492856,1709077848085,-500.0,0.00019178,2]
[315492857,1709077848094,-1327.18,0.00019178,2]
[315492859,1709077848104,-2313.55,0.00019178,2]
[315492861,1709077848113,-500.0,0.00019178,2]
[315492863,1709077848122,-500.0,0.00019178,2]
[315492865,1709077848132,-1732.99,0.00019178,2]
[315492867,1709077848141,-500.0,0.00019178,2]
[315492869,1709077848150,-162.238783,0.00019178,2]
[315492871,1709077848160,-166.666666,0.00019178,2]
[315492873,1709077848168,-500.0,0.00019182,2]
[315492875,1709077848177,-153.0,0.000192,2]
[315492877,1709077848186,-153.0,0.000192,2]
[315492879,1709077848196,-153.0,0.000192,2]
[315492881,1709077848205,-153.0,0.000192,2]
[315492883,1709077848214,-153.0,0.000192,2]
[315492885,1709077848223,-153.0,0.000192,2]
[315492887,1709077848232,-153.0,0.000193,2]
[315492888,1709077848241,-153.0,0.000193,2]
[315492890,1709077848250,-306.0,0.000193,2]
[315492892,1709077848259,-500.0,0.00019353,2]
[315492894,1709077848268,-500.0,0.00019452,2]
[315492896,1709077848277,-500.0,0.00019452,2]
[315492898,1709077848286,-500.0,0.00019452,2]
[315492900,1709077848295,-500.0,0.00019452,2]
[315492902,1709077848304,-649.34628108,0.00019452,2]
[315492904,1709077848313,-151.0,0.00019452,2]
[315492906,1709077848322,-151.0,0.00019452,2]
[315492908,1709077848332,-500.0,0.00019452,2]
[315492910,1709077848341,-612.75,0.00019452,2]
[315492913,1709077848361,-500.0,0.00019452,2]
[315492915,1709077848371,-1335.0,0.00019452,2]
[315492917,1709077848380,-151.200963,0.00019452,2]
[315492919,1709077848389,-151.0,0.00019452,2]
[315492921,1709077848399,-151.0,0.00019452,2]
[315492923,1709077848408,-151.0,0.00019452,2]
[315492925,1709077848418,-500.0,0.00019452,2]
[315492927,1709077848427,-500.0,0.00019452,2]
[315492929,1709077848436,-500.0,0.00019452,2]
[315492931,1709077848445,-500.0,0.00019452,2]
[315492933,1709077848455,-2166.89,0.00019452,2]
[315492935,1709077848463,-945.21,0.00019452,2]
[315492937,1709077848473,-1314.19,0.00019452,2]
[315492939,1709077848482,-151.0,0.00019452,2]
[315492941,1709077848491,-276.714234,0.00019452,2]
[315492942,1709077848500,-500.0,0.00019452,2]
[315492944,1709077848509,-500.0,0.00019452,2]
[315492946,1709077848518,-516.79,0.00019452,2]
[315492948,1709077848527,-500.0,0.00019452,2]
[315492950,1709077848537,-435.404582,0.00019452,2]
[315492952,1709077848546,-435.404582,0.00019452,2]
[315492954,1709077848556,-435.404582,0.00019452,2]
[315492956,1709077848565,-435.404582,0.00019452,2]
[315492958,1709077848575,-435.404582,0.00019452,2]
[315492960,1709077848584,-435.404582,0.00019452,2]
[315492962,1709077848594,-500.0,0.00019452,2]
[315492964,1709077848603,-500.0,0.00019452,2]
[315492966,1709077848613,-500.0,0.00019452,2]
[315492968,1709077848622,-151.0,0.00019452,2]
[315492970,1709077848631,-151.0,0.00019452,2]
[315492972,1709077848640,-151.0,0.00019452,2]
[315492974,1709077848653,-1734.91,0.00019452,2]
[315492976,1709077848663,-500.0,0.00019452,2]
[315492978,1709077848672,-500.0,0.00019452,2]
[315492980,1709077848682,-1315.61,0.00019452,2]
[315492982,1709077848691,-500.0,0.00019452,2]
[315492984,1709077848701,-500.0,0.00019452,2]
[315492986,1709077848710,-500.0,0.00019452,2]
[315492988,1709077848719,-2403.05,0.00019452,2]
[315492990,1709077848728,-2320.68427976,0.00019452,2]
[315497561,1709078963900,1705.280595,0.00017111,2]
[315497574,1709079011375,6604.659405,0.00017394,2]
[315497575,1709079011406,9000.0,0.00017394,2]
[315497612,1709079034695,-263.5269216,0.00017394,2]
[315497614,1709079034707,-1078.81,0.00017394,2]
[315498152,1709079040728,-340.80038775,0.00017393,2]
[315498154,1709079040740,-5531.47282128,0.00017393,2]
[315498156,1709079040749,-7953.0036734,0.00017394,2]
[315498158,1709079040759,-155.08840039,0.00017746,2]
[315498160,1709079040768,-1591.62159516,0.00017747,2]
[315498162,1709079040777,-1277.22088879,0.00017748,2]
[315498166,1709079040799,-601.82528829,0.00017748,2]
[315498168,1709079040808,-155.08840039,0.00017748,2]
[315498169,1709079040817,-300.0,0.00017751,2]
[315498170,1709079040826,-907.97057206,0.00018631,2]
[315498171,1709079040835,-300.94,0.00018732,3]
[315498172,1709079040845,-155.09150399,0.0001874,2]
[315498173,1709079040855,-349.43741486,0.0001874,2]
[315498174,1709079040864,-4319.66970928,0.00018742,2]
[315498175,1709079040878,-3241.49991454,0.00018742,2]
[315498176,1709079040889,-1984.01179553,0.00018742,2]
[315498184,1709079041962,-15278.59919046,0.00018742,2]
[315498185,1709079041975,-6296.05,0.00018742,2]
[315498206,1709079043920,-1879.04617708,0.00017393,2]
[315498208,1709079043930,-10090.1660106,0.00018742,2]
[315498308,1709079045753,-234790.00337959,0.00018742,2]
[315498310,1709079045763,-233.2157639,0.0001884,2]
[315498312,1709079045772,-182.18990099,0.0001884,2]
[315498314,1709079045781,-239.17828175,0.000189,2]
[315498316,1709079045791,-500.0,0.00018924,2]
[315498318,1709079045800,-5128.17693492,0.00019,2]
[315498320,1709079045809,-153.0,0.00019,2]
[315498322,1709079045819,-153.0,0.00019,2]
[315498324,1709079045828,-153.0,0.00019,2]
[315498326,1709079045837,-500.0,0.00019108,2]
[315498328,1709079045846,-349.43741484,0.00019154,2]
[315498330,1709079045855,-500.37578714,0.00019178,2]
[315498332,1709079045864,-525.90533809,0.00019178,2]
[315498334,1709079045874,-500.0,0.00019178,2]
[315498336,1709079045883,-500.0,0.00019178,2]
[315498338,1709079045892,-500.0,0.00019178,2]
[315498340,1709079045902,-500.0,0.00019178,2]
[315498342,1709079045911,-500.0,0.00019178,2]
[315498344,1709079045921,-500.0,0.00019178,2]
[315498346,1709079045930,-500.0,0.00019178,2]
[315498348,1709079045939,-500.0,0.00019178,2]
[315498350,1709079045948,-389.99369936,0.00019178,2]
[315498352,1709079045957,-500.0,0.00019178,2]
[315498354,1709079045967,-500.0,0.00019178,2]
[315498356,1709079045976,-500.0,0.00019178,2]
[315498358,1709079045985,-500.0,0.00019178,2]
[315498360,1709079045995,-162.39864125,0.00019178,2]
[315498362,1709079046005,-500.0,0.00019178,2]
[315498364,1709079046014,-1986.32,0.00019178,2]
[315498366,1709079046022,-500.0,0.00019178,2]
[315498367,1709079046031,-832.24,0.00019178,2]
[315498368,1709079046041,-866.44,0.00019178,2]
[315498369,1709079046050,-500.0,0.00019178,2]
[315498370,1709079046060,-949.76,0.00019178,2]
[315498371,1709079046069,-500.0,0.00019178,2]
[315498372,1709079046079,-500.0,0.00019178,2]
[315498373,1709079046090,-1263.43,0.00019178,2]
[315498374,1709079046100,-500.0,0.00019178,2]
[315498375,1709079046110,-500.0,0.00019178,2]
[315498376,1709079046120,-500.0,0.00019178,2]
[315498377,1709079046132,-304.783207,0.00019178,2]
[315498378,1709079046142,-304.783207,0.00019178,2]
[315498379,1709079046152,-304.783207,0.00019178,2]
[315498380,1709079046161,-304.783207,0.00019178,2]
[315498381,1709079046175,-500.0,0.00019178,2]
[315498382,1709079046185,-500.0,0.00019178,2]
[315498383,1709079046195,-500.0,0.00019178,2]
[315498384,1709079046206,-500.0,0.00019178,2]
[315498385,1709079046216,-898.12,0.00019178,2]
[315498386,1709079046225,-500.0,0.00019178,2]
[315498387,1709079046235,-500.0,0.00019178,2]
[315498388,1709079046245,-500.0,0.00019178,2]
[315498389,1709079046255,-151.0,0.00019178,2]
[315498390,1709079046264,-500.0,0.00019178,2]
[315498391,1709079046273,-213.91899421,0.00019178,2]
[315498392,1709079046282,-500.0,0.00019178,2]
[315498393,1709079046292,-500.0,0.00019178,2]
[315498394,1709079046301,-6303.04,0.00019178,2]
[315498395,1709079046310,-500.0,0.00019178,2]
[315498396,1709079046321,-724.72,0.00019178,2]
[315498397,1709079046330,-500.0,0.00019178,2]
[315498398,1709079046339,-500.0,0.00019178,2]